bitfinex-derivatives/quotes_SOLF0:USTF0_20250216
["timestamp","ask_amount","ask_price","bid_price","bid_amount"]
[1739730364057,194.0,188.96,188.95,6.96682096]
[1739730364253,6.96682096,189.03,188.95,12.25842096]
[1739730364454,6.96682096,189.03,188.97,6.96682096]
[1739730364858,5.29,189.01,188.98,0.0398582]
[1739730365060,0.03680679,189.02,188.98,0.0398582]
[1739730366158,5.32660679,189.02,188.98,0.0398582]
[1739730366360,0.03680679,189.02,188.99,6.96682096]
[1739730366553,0.03680679,189.02,188.98,0.0398582]
[1739730367257,5.2902,189.0,188.98,0.0398582]
[1739730369563,5.2905,188.99,188.98,0.0398582]
[1739730370261,0.03680679,189.02,188.98,0.0398582]
[1739730371156,5.2905,188.99,188.98,0.0398582]
[1739730371354,0.03680679,189.02,188.98,0.0398582]
[1739730371660,5.2905,188.99,188.98,0.0398582]
[1739730371867,0.03680679,189.02,188.98,0.0398582]
[1739730373165,5.29,189.01,188.98,0.0398582]
[1739730373365,0.03680679,189.02,188.98,0.0398582]
[1739730373563,0.03680679,189.02,188.98,5.3303582]
[1739730373767,0.03680679,189.02,188.98,0.0398582]
[1739730373968,0.03680679,189.02,188.99,10.88206518]
[1739730374171,0.03680679,189.02,189.0,5.29]
[1739730374367,0.03680679,189.02,188.99,10.88206518]
[1739730374772,0.03680679,189.02,188.98,8.5859582]
[1739730375169,0.03680679,189.02,188.99,5.2903]
[1739730375774,194.0,189.1,189.01,5.2899]
[1739730375775,5.2886,189.06,189.01,5.2899]
[1739730376372,5.2889,189.05,188.99,10.88206518]
[1739730376673,194.0,189.1,188.99,10.88206518]
[1739730376877,0.03652553,189.04,189.01,5.2898]
[1739730377276,0.03652553,189.04,189.0,0.03337219]
[1739730378177,194.0,189.1,189.0,0.03337219]
[1739730378476,194.0,189.1,189.01,5.2897]
[1739730379279,0.03920988,189.07,189.0,0.03337219]
[1739730379476,0.03920988,189.07,189.03,5.2893]
[1739730382576,0.03920988,189.07,189.02,10.88206518]
[1739730382779,0.03920988,189.07,189.0,0.03337219]
[1739730384869,5.2894,189.03,189.0,0.03337219]
[1739730386580,5.2894,189.03,189.0,6.99715184]
[1739730386782,5.2899,189.01,189.0,0.03337219]
[1739730386972,6.96377965,189.05,189.0,0.03337219]
[1739730387381,5.2896,189.03,189.0,0.03337219]
[1739730387581,0.03656354,189.04,189.0,0.03337219]
[1739730388777,0.03656354,189.04,189.0,6.99715184]
[1739730388975,0.03656354,189.04,189.02,6.96377965]
[1739730389384,0.03656354,189.04,189.02,12.25337965]
[1739730391982,0.03656354,189.04,189.03,5.2893]
[1739730392186,5.2879,189.09,189.02,6.96377965]
[1739730392480,6.96377965,189.13,189.06,6.96377965]
[1739730392682,5.2876,189.1,189.06,6.96377965]
[1739730392983,6.96377965,189.13,189.06,6.96377965]
[1739730393486,0.03480527,189.11,189.08,6.99947033]
[1739730394185,5.32210527,189.11,189.08,6.99947033]
[1739730394377,0.03480527,189.11,189.08,6.99947033]
[1739730395687,5.32210527,189.11,189.08,6.99947033]
[1739730396585,5.2874,189.1,189.08,6.99947033]
[1739730397376,0.03480527,189.11,189.08,6.99947033]
[1739730397581,5.2874,189.1,189.08,6.99947033]
[1739730397782,0.03480527,189.11,189.08,6.99947033]
[1739730398085,5.2876,189.1,189.08,6.99947033]
[1739730399783,5.32200527,189.11,189.08,6.99947033]
[1739730400089,0.03480527,189.11,189.1,6.96377965]
[1739730400285,5.32190527,189.11,189.1,6.96377965]
[1739730400788,0.03480527,189.11,189.08,6.99947033]
[1739730401483,0.03480527,189.11,189.1,6.96377965]
[1739730403589,6.96377965,189.19,189.1,6.96377965]
[1739730403787,6.96377965,189.15,189.09,6.96377965]
[1739730404479,6.96377965,189.21,189.14,6.96377965]
[1739730404688,0.97195071,189.2,189.14,6.96377965]
[1739730404888,0.0341261,189.19,189.14,6.96377965]
[1739730405084,5.2854,189.18,189.15,0.0394216]
[1739730405289,0.0341261,189.19,189.15,0.0394216]
[1739730405490,5.2856,189.17,189.15,0.0394216]
[1739730406187,5.2855,189.17,189.15,0.0394216]
[1739730406986,5.2857,189.16,189.15,0.0394216]
[1739730407189,0.0341261,189.19,189.15,0.0394216]
[1739730407991,5.2854,189.17,189.15,0.0394216]
[1739730408190,0.0341261,189.19,189.15,0.0394216]
[1739730409697,5.2857,189.16,189.15,0.0394216]
[1739730411096,5.2856,189.17,189.15,0.0394216]
[1739730411293,0.0341261,189.19,189.15,0.0394216]
[1739730411695,5.2857,189.16,189.15,0.0394216]
[1739730416094,0.0341261,189.19,189.15,0.0394216]
[1739730416401,5.2855,189.17,189.15,0.0394216]
[1739730417601,5.2852,189.18,189.15,0.0394216]
[1739730418296,5.2852,189.18,189.16,6.96377965]
[1739730419399,0.0341261,189.19,189.16,6.96377965]
[1739730419600,0.0341261,189.19,189.18,6.96377965]
[1739730420101,5.3190261,189.19,189.18,6.96377965]
[1739730420602,0.0341261,189.19,189.18,12.24897965]
[1739730420797,0.0341261,189.19,189.18,6.96377965]
[1739730422804,1.00595086,189.19,189.18,6.96377965]
[1739730423097,0.0341261,189.19,189.18,6.96377965]
[1739730430106,0.0341261,189.19,189.18,11.94927043]
[1739730430305,1.00614877,189.19,189.18,11.94927043]
[1739730430507,0.0341261,189.19,189.18,11.94927043]
[1739730431406,5.3190261,189.19,189.18,11.94927043]
[1739730431910,1.0061593,189.19,189.18,11.94927043]
[1739730432313,1.0061593,189.19,189.18,16.85454916]
[1739730432513,0.0341261,189.19,189.18,16.85825656]
[1739730433013,0.0341261,189.19,189.18,22.14345656]
[1739730433214,0.0341261,189.19,189.18,16.85825656]
[1739730435110,0.0341261,189.19,189.18,16.86003593]
[1739730435308,0.0341261,189.19,189.18,22.14523593]
[1739730435505,0.0341261,189.19,189.18,16.86003593]
[1739730435905,0.0341261,189.19,189.18,20.48177536]
[1739730436711,0.0341261,189.19,189.18,13.5221236]
[1739730436907,0.0341261,189.19,189.18,9.89914643]
[1739730437115,5.3190261,189.19,189.18,9.89914643]
[1739730438417,5.3190261,189.19,189.18,13.52468893]
[1739730438719,6.29105162,189.19,189.18,13.52822474]
[1739730439819,6.29105464,189.19,189.18,13.52822474]
[1739730440018,1.00615464,189.19,189.18,13.52822474]
[1739730440216,1.00615464,189.19,189.18,20.49200439]
[1739730440411,0.0341261,189.19,189.18,20.49200439]
[1739730440615,0.0341261,189.19,189.18,25.77720439]
[1739730441518,0.0341261,189.19,189.18,20.49200439]
[1739730442120,0.0341261,189.19,189.18,13.52822474]
[1739730442619,5.3190261,189.19,189.18,13.52822474]
[1739730442811,6.29105207,189.19,189.18,13.53360634]
[1739730443014,5.3190261,189.19,189.18,13.53360634]
[1739730443415,5.3190261,189.19,189.18,9.90579713]
[1739730444221,6.29106448,189.19,189.18,9.90579713]
[1739730444522,5.3190261,189.19,189.18,9.90579713]
[1739730446019,6.99790575,189.19,189.15,0.0394216]
[1739730446221,5.2857,189.16,189.15,0.0394216]
[1739730446423,5.2857,189.16,189.15,3.67205172]
[1739730446716,6.99790575,189.19,189.12,6.96377965]
[1739730446916,6.96377965,189.19,189.12,6.96377965]
[1739730447118,5.2858,189.16,189.12,6.96377965]
[1739730447721,5.32623448,189.16,189.12,6.99886665]
[1739730449620,0.04043448,189.16,189.12,0.035087]
[1739730450027,6.96377965,189.15,189.12,0.035087]
[1739730450222,5.2865,189.13,189.12,0.035087]
[1739730450632,5.2876,189.1,189.06,6.96377965]
[1739730450824,6.96377965,189.11,189.04,6.96377965]
[1739730451927,0.03876388,189.09,189.06,0.03501764]
[1739730452425,7.00254353,189.09,189.06,0.03501764]
[1739730452628,6.96377965,189.07,189.06,1.764e-05]
[1739730453425,12.25197965,189.07,189.06,1.764e-05]
[1739730454031,15.34077965,189.07,189.06,1.764e-05]
[1739730456236,3.0888,189.07,189.06,1.764e-05]
[1739730456439,3.2336,189.08,189.06,1.764e-05]
[1739730456938,0.03876388,189.09,189.06,1.764e-05]
[1739730457138,0.03876388,189.09,189.06,6.96379729]
[1739730457832,0.03876388,189.09,189.06,12.25229729]
[1739730458039,0.03876388,189.09,189.07,4.92536697]
[1739730458236,0.03876388,189.09,189.06,6.96379729]
[1739730458438,0.03876388,189.09,189.07,4.92437793]
[1739730458639,0.03876388,189.09,189.06,6.96379729]
[1739730458839,0.03876388,189.09,189.07,4.9243769]
[1739730459043,0.03876388,189.09,189.06,6.96379729]
[1739730459242,0.03876388,189.09,189.08,6.96377965]
[1739730461741,0.03876388,189.09,189.06,6.96379729]
[1739730462440,0.03876388,189.09,189.06,12.25229729]
[1739730462746,0.03876388,189.09,189.06,6.96379729]
[1739730462944,0.03876388,189.09,189.06,11.8850616]
[1739730463142,0.03876388,189.09,189.06,12.25219729]
[1739730463545,0.03876388,189.09,189.06,6.96379729]
[1739730463742,0.03876388,189.09,189.06,17.1735616]
[1739730463942,0.03876388,189.09,189.06,12.25229729]
[1739730464137,0.03876388,189.09,189.06,6.96379729]
[1739730464341,0.03876388,189.09,189.07,5.2882]
[1739730464547,0.03876388,189.09,189.06,6.96379729]
[1739730464845,0.03876388,189.09,189.08,6.96377965]
[1739730465046,0.03876388,189.09,189.08,17.17110602]
[1739730466342,0.03876388,189.09,189.08,20.72943387]
[1739730466649,0.03876388,189.09,189.08,11.88320602]
[1739730467447,0.03876388,189.09,189.08,11.88351761]
[1739730467649,0.03876388,189.09,189.08,17.17141761]
[1739730467843,0.03876388,189.09,189.08,20.72955911]
[1739730469137,0.03876388,189.09,189.08,20.73035596]
[1739730470749,0.03876388,189.09,189.08,15.44245596]
[1739730470942,0.03876388,189.09,189.08,11.88392079]
[1739730471148,0.03876388,189.09,189.08,4.92014114]
[1739730471346,5.2879,189.08,189.07,4.92014114]
[1739730473248,5.32646388,189.09,189.07,4.92014114]
[1739730473445,0.03876388,189.09,189.06,10.52439227]
[1739730473753,0.03876388,189.09,189.07,4.92294084]
[1739730473949,0.03876388,189.09,189.06,6.96379729]
[1739730474153,0.03876388,189.09,189.07,4.92297959]
[1739730474453,0.03876388,189.09,189.06,6.96379729]
[1739730474655,0.03876388,189.09,189.07,4.92355899]
[1739730474850,0.03876388,189.09,189.08,4.92355899]
[1739730475051,5.32646388,189.09,189.08,4.92355899]
[1739730475450,5.32646388,189.09,189.06,10.52439227]
[1739730475650,5.32646388,189.09,189.07,4.92433966]
[1739730475850,5.32646388,189.09,189.06,6.96379729]
[1739730476054,5.32646388,189.09,189.07,4.92435953]
[1739730476251,5.32646388,189.09,189.08,4.92435953]
[1739730476954,0.03876388,189.09,189.08,4.92435953]
[1739730477148,0.03876388,189.09,189.08,4.92499941]
[1739730477753,5.32646388,189.09,189.08,4.92499941]
[1739730479156,0.03876388,189.09,189.06,1.764e-05]
[1739730479754,5.2882,189.07,189.06,1.764e-05]
[1739730480556,12.25197965,189.07,189.06,1.764e-05]
[1739730480754,5.2893,189.03,189.02,6.235e-05]
[1739730480950,6.96377965,189.02,188.96,6.96377965]
[1739730481253,6.96377965,189.02,188.97,3.56751215]
[1739730481460,6.96377965,189.02,188.98,3.56751215]
[1739730481759,6.96377965,189.02,188.96,6.96377965]
[1739730481950,5.2905,188.99,188.98,0.04030015]
[1739730483055,5.2905,188.99,188.98,1.5e-07]
[1739730483455,8.6518,188.99,188.98,1.5e-07]
[1739730483851,8.6518,188.99,188.88,6.96377965]
[1739730483852,3.3613,188.99,188.88,6.96377965]
[1739730484055,6.96377965,188.94,188.88,6.96377965]
[1739730484257,6.96377965,188.94,188.86,10.53170388]
[1739730484457,5.2928,188.91,188.86,6.96377965]
[1739730484656,5.2928,188.91,188.84,3.56792423]
[1739730484860,10.89845801,188.95,188.84,3.56792423]
[1739730485257,0.03520824,188.89,188.86,0.03743864]
[1739730487458,0.03520824,188.89,188.88,10.89845801]
[1739730487653,3.1629,188.98,188.88,10.89845801]
[1739730487852,3.1629,188.98,188.9,5.2929]
[1739730488054,8.4537,188.98,188.9,5.2929]
[1739730488261,3.1629,188.98,188.89,3.56792423]
[1739730488458,3.1629,188.98,188.88,14.46638224]
[1739730488657,3.1629,188.98,188.91,5.2925]
[1739730488853,0.0390124,188.95,188.91,0.03339965]
[1739730489459,0.0390124,188.95,188.92,5.2924]
[1739730489662,0.0390124,188.95,188.91,0.03339965]
[1739730491862,5.2919,188.94,188.91,0.03339965]
[1739730492061,0.0390124,188.95,188.91,0.03339965]
[1739730492562,5.2924,188.92,188.91,0.03339965]
[1739730492963,0.0390124,188.95,188.91,0.03339965]
[1739730494762,5.2924,188.92,188.91,0.03339965]
[1739730494958,0.0390124,188.95,188.91,0.03339965]
[1739730495462,5.2924,188.93,188.91,0.03339965]
[1739730495764,0.0390124,188.95,188.91,0.03339965]
[1739730496570,5.2924,188.92,188.91,0.03339965]
[1739730496758,5.2924,188.92,188.91,9.965e-05]
[1739730496959,16.19085801,188.92,188.91,9.965e-05]
[1739730498163,19.58095801,188.92,188.91,9.965e-05]
[1739730498461,10.89845801,188.89,188.76,10.89845801]
[1739730498655,10.89845801,188.89,188.78,14.93376537]
[1739730498858,10.89845801,188.89,188.78,8.36676537]
[1739730499060,3.3457,188.88,188.76,10.89845801]
[1739730499460,0.03663939,188.84,188.8,0.03690346]
[1739730499858,5.2955,188.81,188.8,0.03690346]
[1739730500263,5.2955,188.81,188.8,3.46e-06]
[1739730501569,10.89845801,188.83,188.8,3.46e-06]
[1739730502362,10.89845801,188.83,188.71,8.35520197]
[1739730502663,10.89845801,188.79,188.68,8.35520197]
[1739730502863,5.2964,188.78,188.71,5.2983]
[1739730503263,10.89845801,188.79,188.68,8.35520197]
[1739730503567,0.03994417,188.75,188.72,5.33187616]
[1739730504167,0.03994417,188.75,188.72,0.03387616]
[1739730504462,0.03994417,188.75,188.73,5.2977]
[1739730504868,0.03994417,188.75,188.74,5.2975]
[1739730505067,0.03994417,188.75,188.72,0.03387616]
[1739730505464,0.03994417,188.75,188.74,5.2975]
[1739730505671,0.03994417,188.75,188.72,0.03387616]
[1739730505863,0.03994417,188.75,188.73,5.2977]
[1739730507366,0.03994417,188.75,188.74,5.2975]
[1739730508472,0.03994417,188.75,188.72,0.03387616]
[1739730508673,0.03994417,188.75,188.73,5.2978]
[1739730509272,0.03994417,188.75,188.72,0.03387616]
[1739730509773,0.03994417,188.75,188.74,5.2975]
[1739730514673,0.03994417,188.75,188.72,0.03387616]
[1739730516585,5.2977,188.74,188.72,0.03387616]
[1739730518370,0.03994417,188.75,188.72,0.03387616]
[1739730518575,5.2978,188.73,188.72,0.03387616]
[1739730518773,0.03994417,188.75,188.72,0.03387616]
[1739730519176,5.2978,188.73,188.72,0.03387616]
[1739730520080,0.03994417,188.75,188.72,0.03387616]
[1739730521487,5.33724417,188.75,188.72,0.03387616]
[1739730521883,5.2978,188.73,188.72,0.03387616]
[1739730522582,10.93840218,188.75,188.72,0.03387616]
[1739730522981,5.2978,188.73,188.72,0.03387616]
[1739730526783,5.2978,188.73,188.72,7.616e-05]
[1739730527280,10.93840218,188.75,188.68,3.55240444]
[1739730527485,10.89845801,188.71,188.69,3.55240444]
[1739730527788,10.89845801,188.71,188.63,3.55240444]
[1739730528087,10.89845801,188.71,188.64,3.55240444]
[1739730528388,0.03700912,188.69,188.65,3.58586649]
[1739730528587,0.03700912,188.69,188.66,3.55666155]
[1739730528787,0.03700912,188.69,188.67,3.55666155]
[1739730528985,0.03700912,188.69,188.68,3.55666155]
[1739730530686,0.03700912,188.69,188.66,3.55666155]
[1739730530985,10.89845801,188.68,188.65,2.36e-05]
[1739730531487,10.89845801,188.68,188.54,5.3028]
[1739730531693,10.89845801,188.63,188.52,10.89845801]
[1739730532092,5.3009,188.62,188.55,5.3028]
[1739730532392,10.89845801,188.63,188.55,5.3028]
[1739730532786,0.03341926,188.61,188.57,0.04058637]
[1739730534895,0.03341926,188.61,188.59,5.3015]
[1739730535397,0.03341926,188.61,188.57,0.04058637]
[1739730535589,0.03341926,188.61,188.6,5.3014]
[1739730536595,0.03341926,188.61,188.59,5.3016]
[1739730537000,0.03341926,188.61,188.57,0.04058637]
[1739730537396,0.03341926,188.61,188.6,5.3014]
[1739730538402,3.2462,188.71,188.58,10.89845801]
[1739730538605,3.2462,188.71,188.61,10.89845801]
[1739730539000,3.2462,188.71,188.64,5.3003]
[1739730539301,5.299,188.69,188.58,10.89845801]
[1739730539502,5.33785683,188.69,188.66,0.03975071]
[1739730539702,5.33785683,188.69,188.63,5.3003]
[1739730539902,5.33785683,188.69,188.66,0.03993805]
[1739730540501,0.03885683,188.69,188.66,0.03993805]
[1739730541404,5.33795683,188.69,188.66,0.03993805]
[1739730541698,5.33795683,188.69,188.56,9.7816]
[1739730541699,10.89845801,188.67,188.56,9.7816]
[1739730542105,5.3003,188.64,188.57,5.302]
[1739730542305,10.89845801,188.67,188.56,9.7816]
[1739730542610,5.2997,188.66,188.59,5.3016]
[1739730542801,0.03651306,188.63,188.6,0.03718102]
[1739730542997,10.89845801,188.7,188.6,0.03718102]
[1739730543197,0.03365655,188.63,188.62,5.3008]
[1739730543405,5.2989,188.69,188.58,10.89845801]
[1739730543602,0.03706543,188.64,188.61,0.03497054]
[1739730543898,0.03706543,188.64,188.61,5.33587054]
[1739730544098,0.03706543,188.64,188.61,0.03497054]
[1739730544298,0.03706543,188.64,188.63,5.3006]
[1739730544503,0.03706543,188.64,188.61,10.93342855]
[1739730544504,10.89845801,188.76,188.61,10.93342855]
[1739730544705,10.89845801,188.76,188.61,10.89845801]
[1739730545498,5.298,188.72,188.66,5.2997]
[1739730545698,0.04034622,188.69,188.66,5.33559631]
[1739730545913,0.04034622,188.69,188.66,0.03589631]
[1739730549911,5.2994,188.67,188.66,0.03589631]
[1739730557317,5.2994,188.67,188.66,9.631e-05]
[1739730557517,16.19785801,188.67,188.66,9.631e-05]
[1739730559515,5.3014,188.61,188.52,10.89845801]
[1739730559709,10.89845801,188.67,188.52,10.89845801]
[1739730559909,5.3011,188.62,188.52,25.40867465]
[1739730560115,10.89845801,188.67,188.52,25.40867465]
[1739730560516,0.04036954,188.61,188.58,0.04043154]
[1739730561218,5.3015,188.6,188.58,0.04043154]
[1739730561417,0.04036954,188.61,188.58,0.04043154]
[1739730561914,10.93882755,188.61,188.58,3.154e-05]
[1739730562218,0.04036954,188.61,188.58,3.154e-05]
[1739730563316,5.3017,188.59,188.58,3.154e-05]
[1739730568022,5.34176954,188.61,188.58,3.154e-05]
[1739730568321,0.04036954,188.61,188.58,3.154e-05]
[1739730568521,5.3014,188.6,188.58,3.154e-05]
[1739730568714,0.04036954,188.61,188.58,3.154e-05]
[1739730570026,0.04036954,188.61,188.58,5.30173154]
[1739730570228,0.04036954,188.61,188.58,3.154e-05]
[1739730570826,5.3015,188.6,188.58,3.154e-05]
[1739730571721,10.89845801,188.6,188.49,14.51021664]
[1739730571929,10.89845801,188.56,188.49,14.51021664]
[1739730572225,5.3036,188.53,188.47,14.51021664]
[1739730572418,10.89845801,188.56,188.45,28.93546947]
[1739730572622,10.89845801,188.56,188.45,14.51021664]
[1739730572824,5.33783741,188.52,188.49,0.03769763]
[1739730573221,20.78925801,188.59,188.49,0.03769763]
[1739730573423,5.3035,188.53,188.49,0.03769763]
[1739730574525,0.040043,188.53,188.49,0.03769763]
[1739730574719,5.3037,188.52,188.49,0.03769763]
[1739730575729,0.040043,188.53,188.49,0.03769763]
[1739730577125,0.040043,188.53,188.49,5.34219763]
[1739730577621,0.040043,188.53,188.49,0.03769763]
[1739730577925,5.343443,188.53,188.49,0.03769763]
[1739730578126,0.040043,188.53,188.49,0.03769763]
[1739730579030,5.343443,188.53,188.49,0.03769763]
[1739730579231,0.040043,188.53,188.49,0.03769763]
[1739730580032,5.343443,188.53,188.49,0.03769763]
[1739730580732,0.040043,188.53,188.49,0.03769763]
[1739730581627,0.040043,188.53,188.49,10.93615564]
[1739730581830,0.040043,188.53,188.51,5.3039]
[1739730583030,0.040043,188.53,188.52,10.89845801]
[1739730583336,5.3014,188.6,188.52,10.89845801]
[1739730583532,17.43485801,188.65,188.52,10.89845801]
[1739730583729,5.302,188.59,188.53,5.3033]
[1739730583929,17.43485801,188.65,188.52,10.89845801]
[1739730584329,0.03601049,188.6,188.57,0.03882979]
[1739730584933,5.33761049,188.6,188.57,0.03882979]
[1739730585435,5.3019,188.59,188.57,0.03882979]
[1739730585636,0.03601049,188.6,188.57,0.03882979]
[1739730586035,5.3017,188.59,188.57,0.03882979]
[1739730586336,0.03601049,188.6,188.57,0.03882979]
[1739730588037,5.3019,188.59,188.57,0.03882979]
[1739730588239,0.03601049,188.6,188.57,0.03882979]
[1739730588939,5.302,188.58,188.57,0.03882979]
[1739730589338,5.302,188.58,188.57,2.979e-05]
[1739730590332,11.753,188.58,188.57,2.979e-05]
[1739730596841,5.3046,188.49,188.44,8.5425]
[1739730597243,10.89845801,188.55,188.44,8.5425]
[1739730597843,0.03845815,188.51,188.48,0.03569004]
[1739730598942,0.03845815,188.51,188.48,5.34019004]
[1739730599342,0.03845815,188.51,188.48,0.03569004]
[1739730599543,0.03845815,188.51,188.49,5.3045]
[1739730599938,0.03845815,188.51,188.5,5.3042]
[1739730600340,0.03845815,188.51,188.49,10.89845801]
[1739730601445,0.03845815,188.51,188.5,5.3042]
[1739730603044,0.03845815,188.51,188.48,0.03569004]
[1739730603446,5.3045,188.49,188.48,0.03569004]
[1739730604741,0.03845815,188.51,188.48,0.03569004]
[1739730605144,5.34255815,188.51,188.48,0.03569004]
[1739730605945,0.03845815,188.51,188.48,0.03569004]
[1739730606339,5.3042,188.5,188.48,0.03569004]
[1739730607447,5.34245815,188.51,188.48,0.03569004]
[1739730607649,10.93691616,188.51,188.48,9.004e-05]
[1739730608347,5.3045,188.49,188.48,9.004e-05]
[1739730609044,10.93691616,188.51,188.31,21.90706285]
[1739730609045,5.3065,188.42,188.34,10.89845801]
[1739730609249,10.89845801,188.46,188.34,10.89845801]
[1739730610145,10.89845801,188.46,188.36,5.308]
[1739730610346,0.03970884,188.42,188.38,0.03936883]
[1739730610745,0.03970884,188.42,188.39,5.307]
[1739730610944,0.03970884,188.42,188.38,0.03936883]
[1739730611146,16.20385801,188.46,188.38,0.03936883]
[1739730611446,16.20385801,188.46,188.39,5.3073]
[1739730611642,16.20385801,188.46,188.38,0.03936883]
[1739730611844,10.89845801,188.46,188.38,0.03936883]
[1739730612250,0.04044993,188.44,188.38,0.03936883]
[1739730612448,0.04044993,188.44,188.39,5.3073]
[1739730612855,0.04044993,188.44,188.38,0.03936883]
[1739730613152,0.04044993,188.44,188.4,5.3068]
[1739730613349,0.04044993,188.44,188.38,0.03936883]
[1739730614153,0.04044993,188.44,188.39,5.3073]
[1739730614653,0.04044993,188.44,188.38,0.03936883]
[1739730614854,0.04044993,188.44,188.4,5.3069]
[1739730615049,0.04044993,188.44,188.38,0.03936883]
[1739730616054,0.04044993,188.44,188.41,5.3067]
[1739730616255,0.04044993,188.44,188.38,0.03936883]
[1739730616649,0.04044993,188.44,188.41,5.3066]
[1739730616854,0.04044993,188.44,188.38,0.03936883]
[1739730617351,5.34654993,188.44,188.38,0.03936883]
[1739730617954,5.34654993,188.44,188.39,5.3073]
[1739730619854,5.34654993,188.44,188.4,5.307]
[1739730620055,0.04044993,188.44,188.4,5.307]
[1739730620257,0.04044993,188.44,188.38,0.03936883]
[1739730621056,0.04044993,188.44,188.42,5.3062]
[1739730621252,0.04044993,188.44,188.38,0.03936883]
[1739730622059,10.89845801,188.4,188.28,10.89845801]
[1739730622258,10.89845801,188.4,188.21,58.41883426]
[1739730622259,15.92,188.3,188.21,58.41883426]
[1739730622456,10.89845801,188.31,188.21,58.41883426]
[1739730622656,26.81845801,188.31,188.21,58.41883426]
[1739730622856,10.89845801,188.25,188.21,32.12204696]
[1739730623057,10.89845801,188.25,188.17,403.53145222]
[1739730623058,26.81845801,188.22,188.17,403.53145222]
[1739730623263,10.89845801,188.19,188.17,209.58193138]
[1739730623458,26.81845801,188.19,188.18,5.488e-05]
[1739730623859,32.13155801,188.19,188.17,190.81848626]
[1739730624060,32.13155801,188.19,188.17,173.02338626]
[1739730624261,43.03001602,188.19,188.17,155.35848626]
[1739730624459,43.03001602,188.19,188.17,138.79308626]
[1739730624658,38.81576973,188.19,188.17,138.79308626]
[1739730624865,33.50266973,188.19,188.17,138.79308626]
[1739730625157,17.58266973,188.19,188.04,15.23052928]
[1739730625361,17.58266973,188.05,187.98,90.52825658]
[1739730625563,1.06360348,188.04,187.98,90.52825658]
[1739730625959,17.58266973,187.99,187.96,20.1949626]
[1739730626165,15.92,187.98,187.96,20.1949626]
[1739730626459,17.58266973,187.99,187.96,20.23069887]
[1739730626460,17.58266973,187.97,187.96,20.23069887]
[1739730626661,17.58266973,187.97,187.87,106.82794813]
[1739730626857,17.58266973,187.92,187.87,106.82794813]
[1739730627060,17.58266973,187.88,187.87,37.42776108]
[1739730627261,17.58266973,187.88,187.61,17.58266973]
[1739730627463,17.58266973,187.88,187.73,137.14973708]
[1739730627763,5.69e-05,187.74,187.7,0.03392665]
[1739730627958,1.06456592,187.87,187.65,17.58266973]
[1739730628157,1.06456592,187.87,187.75,137.14973708]
[1739730628359,1.06456592,187.87,187.79,17.58266973]
[1739730628560,1.06456592,187.87,187.74,17.58266973]
[1739730628561,1.06456592,187.87,187.83,17.58266973]
[1739730628768,17.58266973,188.1,187.85,137.14973708]
[1739730629066,15.92,188.18,187.99,17.58266973]
[1739730629261,1.06286868,188.17,188.03,17.58266973]
[1739730629465,1.06286868,188.17,188.11,154.73240681]
[1739730629864,6.868e-05,188.17,188.16,5.3138]
[1739730630059,15.92,188.24,188.03,17.58266973]
[1739730630256,0.03630187,188.16,187.99,17.58266973]
[1739730630457,1.06298166,188.15,188.11,100.07458628]
[1739730630661,183.35279601,188.16,188.13,100.07458628]
[1739730630961,183.35279601,188.16,188.1,28.54331665]
[1739730631269,183.16771917,188.16,188.03,119.24]
[1739730631465,103.6253454,188.15,188.07,100.07458628]
[1739730631666,103.66266769,188.15,188.11,0.0388372]
[1739730632066,103.6253454,188.15,188.03,119.24]
[1739730632366,103.66449005,188.15,187.97,28.54331665]
[1739730632665,103.6253454,188.15,188.04,5.3171]
[1739730632867,103.6253454,188.15,188.02,100.07458628]
[1739730633162,103.6253454,188.14,188.03,25.89147805]
[1739730633464,28.54331665,188.1,187.86,119.26]
[1739730633658,28.58272458,188.1,188.07,0.03270283]
[1739730633864,28.54331665,188.1,187.99,25.89147805]
[1739730634061,28.54331665,188.06,187.97,25.89147805]
[1739730634370,28.54331665,188.06,188.0,0.03270283]
[1739730634869,103.66406618,188.05,187.87,3.3575]
[1739730635067,28.54331665,188.01,187.74,28.54331665]
[1739730635569,28.54331665,187.97,187.79,28.54331665]
[1739730635760,28.54331665,187.93,187.74,28.54331665]
[1739730636160,278.86418837,187.92,187.87,5.3218]
[1739730636367,0.03634554,187.85,187.74,28.54331665]
[1739730636569,28.54331665,187.89,187.73,119.26]
[1739730636869,0.03399093,187.81,187.73,119.26]
[1739730637070,9.093e-05,187.81,187.74,28.54331665]
[1739730637269,9.093e-05,187.81,187.8,5.324]
[1739730637873,9.093e-05,187.81,187.65,28.54331665]
[1739730638266,28.54331665,187.84,187.65,28.54331665]
[1739730638571,7.867e-05,187.75,187.71,0.03390001]
[1739730638972,103.93066268,187.83,187.8,5.3238]
[1739730639172,103.93066268,187.83,187.65,28.54331665]
[1739730639772,5.08025999,187.81,187.65,28.54331665]
[1739730639969,0.03411231,187.76,187.72,0.03547183]
[1739730640174,5.03403951,187.73,187.61,38.32651665]